[Event "2026 European Womens Championship"]
[Site "Batumi, GE"]
[Date "2026.06.01"]
[Round "7"]
[White "Nahapetyan, Ani"]
[Black "Radeva, Viktoria"]
[Result "0-1"]
[Board "83"]
[TimeControl "5400+30"]
[WhiteFideId "13317776"]
[BlackFideId "2915405"]
[WhiteElo "1827"]
[BlackElo "2242"]
[BlackTitle "WGM"]
[WhiteClock "0:11:02"]
[BlackClock "0:04:46"]
[Variant "Standard"]

1. e4 {[%clk 1:30:48]}  c5 {[%clk 1:30:48]} 2. Nf3 {[%clk 1:31:10]}  Nc6 {[%clk 1:31:11]} 3. d4 {[%clk 1:31:33]}  cxd4 {[%clk 1:31:37]}
4. Nxd4 {[%clk 1:31:56]}  e5 {[%clk 1:32:05]} 5. Nb5 {[%clk 1:32:17]}  d6 {[%clk 1:32:28]} 6. c4 {[%clk 1:31:53]}  Be6 {[%clk 1:32:48]}
7. Be2 {[%clk 1:29:31]}  g6 {[%clk 1:32:19]} 8. Be3 {[%clk 1:27:41]}  a6 {[%clk 1:31:42]} 9. N5c3 {[%clk 1:26:52]}  Bg7 {[%clk 1:27:45]}
10. O-O {[%clk 1:26:07]}  Nd4 {[%clk 1:25:55]} 11. Na3 {[%clk 1:22:13]}  Rc8 {[%clk 1:16:02]} 12. Nd5 {[%clk 1:14:48]}  Bxd5 {[%clk 1:14:11]}
13. cxd5 {[%clk 1:14:20]}  Nf6 {[%clk 1:12:45]} 14. Bxd4 {[%clk 1:09:22]}  exd4 {[%clk 1:13:11]} 15. Qxd4 {[%clk 1:08:38]}  O-O {[%clk 1:13:12]}
16. Qb4 {[%clk 1:04:45]}  Re8 {[%clk 0:51:15]} 17. Bd3 {[%clk 1:01:19]}  a5 {[%clk 0:46:25]} 18. Qb5 {[%clk 0:53:58]}  Nxe4 {[%clk 0:35:54]}
19. Rae1 {[%clk 0:51:06]}  f5 {[%clk 0:24:46]} 20. Nc4 {[%clk 0:47:40]}  Rc5 {[%clk 0:21:50]} 21. Qxb7 {[%clk 0:45:30]}  Bd4 {[%clk 0:20:34]}
22. Bxe4 {[%clk 0:42:43]}  Rxc4 {[%clk 0:16:55]} 23. Bd3 {[%clk 0:41:56]}  Rb4 {[%clk 0:11:40]} 24. Rxe8+ {[%clk 0:32:13]}  Qxe8 {[%clk 0:12:08]}
25. Qc6 {[%clk 0:32:20]}  Qe7 {[%clk 0:10:49]} 26. b3 {[%clk 0:29:05]}  a4 {[%clk 0:10:07]} 27. Bc4 {[%clk 0:27:17]}  axb3 {[%clk 0:10:22]}
28. Bxb3 {[%clk 0:26:20]}  Rb8 {[%clk 0:07:39]} 29. Qc4 {[%clk 0:24:30]}  Qe5 {[%clk 0:07:32]} 30. Rd1 {[%clk 0:23:23]}  Bc5 {[%clk 0:06:42]}
31. h3 {[%clk 0:18:49]}  Rb4 {[%clk 0:06:23]} 32. Qc1 {[%clk 0:16:22]}  Re4 {[%clk 0:03:33]} 33. Bc4 {[%clk 0:11:55]}  Rf4 {[%clk 0:03:50]}
34. Rd2 {[%clk 0:10:53]}  Rxc4 {[%clk 0:03:49]} 35. Qxc4 {[%clk 0:09:52]}  Qe1+ {[%clk 0:04:15]} 36. Kh2 {[%clk 0:10:15]}  Qxd2 {[%clk 0:04:42]}
37. Qb3 {[%clk 0:10:25]}  Qxf2 {[%clk 0:04:08]} 38. Qb8+ {[%clk 0:10:35]}  Kg7 {[%clk 0:04:33]} 39. Qc7+ {[%clk 0:11:02]}  Kh6 {[%clk 0:04:46]} 0-1

[Event "2026 European Womens Championship"]
[Site "Batumi, GE"]
[Date "2026.06.01"]
[Round "7"]
[White "Tsolakidou, Stavroula"]
[Black "Peycheva, Gergana"]
[Result "1/2-1/2"]
[Board "84"]
[TimeControl "5400+30"]
[WhiteFideId "4264312"]
[BlackFideId "2916711"]
[WhiteElo "2455"]
[BlackElo "2186"]
[WhiteTitle "IM"]
[BlackTitle "FM"]
[WhiteClock "0:26:12"]
[BlackClock "0:45:43"]
[Variant "Standard"]

1. e4 {[%clk 1:29:20]}  c6 {[%clk 1:30:39]} 2. d4 {[%clk 1:29:31]}  d5 {[%clk 1:30:45]} 3. e5 {[%clk 1:29:39]}  c5 {[%clk 1:30:39]}
4. Nf3 {[%clk 1:29:19]}  cxd4 {[%clk 1:29:50]} 5. Qxd4 {[%clk 1:29:30]}  Nc6 {[%clk 1:29:37]} 6. Qf4 {[%clk 1:29:54]}  g6 {[%clk 1:28:53]}
7. Nc3 {[%clk 1:27:30]}  d4 {[%clk 1:26:49]} 8. Bc4 {[%clk 1:26:39]}  Bf5 {[%clk 1:25:49]} 9. Ne2 {[%clk 1:26:15]}  Bh6 {[%clk 1:24:01]}
10. Qg3 {[%clk 1:24:38]}  Bxc2 {[%clk 1:22:28]} 11. O-O {[%clk 1:22:57]}  d3 {[%clk 1:21:25]} 12. Nc3 {[%clk 1:20:01]}  d2 {[%clk 1:18:36]}
13. Bxd2 {[%clk 1:17:19]}  Bxd2 {[%clk 1:18:05]} 14. Rad1 {[%clk 1:15:19]}  Bxd1 {[%clk 1:16:42]} 15. Rxd1 {[%clk 1:15:38]}  Qa5 {[%clk 1:15:37]}
16. Rxd2 {[%clk 1:15:45]}  Rd8 {[%clk 1:14:55]} 17. Qf4 {[%clk 1:06:44]}  e6 {[%clk 1:12:17]} 18. Rxd8+ {[%clk 0:57:29]}  Qxd8 {[%clk 1:11:17]}
19. Ne4 {[%clk 0:45:17]}  Qd1+ {[%clk 1:09:43]} 20. Bf1 {[%clk 0:43:12]}  Nge7 {[%clk 1:09:34]} 21. Nd6+ {[%clk 0:37:25]}  Kd7 {[%clk 1:05:50]}
22. Qxf7 {[%clk 0:37:03]}  Qd5 {[%clk 0:50:14]} 23. Bc4 {[%clk 0:27:47]}  Qd1+ {[%clk 0:47:43]} 24. Bf1 {[%clk 0:28:12]}  Qd5 {[%clk 0:45:18]}
25. Bc4 {[%clk 0:25:46]}  Qd1+ {[%clk 0:45:37]} 26. Bf1 {[%clk 0:26:12]}  Qd5 {[%clk 0:45:43]} 1/2-1/2

[Event "2026 European Womens Championship"]
[Site "Batumi, GE"]
[Date "2026.06.01"]
[Round "7"]
[White "Osmak, Yuliia"]
[Black "Khurtsilava, Inga"]
[Result "1-0"]
[Board "85"]
[TimeControl "5400+30"]
[WhiteFideId "14101602"]
[BlackFideId "13600419"]
[WhiteElo "2451"]
[BlackElo "2175"]
[WhiteTitle "IM"]
[BlackTitle "WGM"]
[WhiteClock "0:14:53"]
[BlackClock "0:08:34"]
[Variant "Standard"]

1. e4 {[%clk 1:30:53]}  c6 {[%clk 1:30:39]} 2. d4 {[%clk 1:31:14]}  d5 {[%clk 1:31:05]} 3. e5 {[%clk 1:31:32]}  Bf5 {[%clk 1:31:29]}
4. Nf3 {[%clk 1:31:49]}  e6 {[%clk 1:31:36]} 5. Be2 {[%clk 1:32:04]}  c5 {[%clk 1:31:22]} 6. c3 {[%clk 1:32:10]}  Nc6 {[%clk 1:30:45]}
7. O-O {[%clk 1:32:22]}  h6 {[%clk 1:28:33]} 8. Be3 {[%clk 1:30:52]}  Nge7 {[%clk 1:25:40]} 9. dxc5 {[%clk 1:29:04]}  Qc7 {[%clk 1:24:32]}
10. Na3 {[%clk 1:16:51]}  a6 {[%clk 1:23:49]} 11. Qa4 {[%clk 1:16:51]}  Qb8 {[%clk 1:14:48]} 12. Nd4 {[%clk 0:59:03]}  g5 {[%clk 1:07:12]}
13. f4 {[%clk 0:50:04]}  Bg7 {[%clk 1:06:05]} 14. Rae1 {[%clk 0:49:39]}  Be4 {[%clk 0:56:21]} 15. Bf3 {[%clk 0:43:18]}  gxf4 {[%clk 0:55:31]}
16. Bxf4 {[%clk 0:43:26]}  Bxe5 {[%clk 0:55:04]} 17. Bxe5 {[%clk 0:41:00]}  Qxe5 {[%clk 0:55:20]} 18. b4 {[%clk 0:37:33]}  O-O {[%clk 0:53:12]}
19. Bxe4 {[%clk 0:37:12]}  dxe4 {[%clk 0:53:03]} 20. Nc4 {[%clk 0:37:31]}  Qg7 {[%clk 0:44:53]} 21. Rxe4 {[%clk 0:36:40]}  Nxd4 {[%clk 0:40:52]}
22. cxd4 {[%clk 0:33:24]}  f5 {[%clk 0:40:22]} 23. Rxe6 {[%clk 0:32:48]}  Qxd4+ {[%clk 0:40:39]} 24. Ne3 {[%clk 0:32:43]}  f4 {[%clk 0:40:12]}
25. Rd1 {[%clk 0:24:24]}  Qg7 {[%clk 0:38:35]} 26. Qb3 {[%clk 0:22:51]}  Kh8 {[%clk 0:38:34]} 27. Rdd6 {[%clk 0:16:29]}  Ng8 {[%clk 0:37:16]}
28. Rg6 {[%clk 0:14:48]}  Qa1+ {[%clk 0:34:57]} 29. Rd1 {[%clk 0:13:24]}  Qe5 {[%clk 0:28:13]} 30. Ng4 {[%clk 0:13:20]}  Qe7 {[%clk 0:21:30]}
31. Qc3+ {[%clk 0:13:40]}  Kh7 {[%clk 0:21:28]} 32. Rdd6 {[%clk 0:13:53]}  h5 {[%clk 0:05:51]} 33. Rh6+ {[%clk 0:13:27]}  Nxh6 {[%clk 0:06:16]}
34. Rxh6+ {[%clk 0:13:53]}  Kg8 {[%clk 0:06:40]} 35. Rh8+ {[%clk 0:13:18]}  Kf7 {[%clk 0:07:00]} 36. Rh7+ {[%clk 0:13:43]}  Ke8 {[%clk 0:07:20]}
37. Rxe7+ {[%clk 0:14:07]}  Kxe7 {[%clk 0:07:47]} 38. Qe5+ {[%clk 0:14:29]}  Kd7 {[%clk 0:08:09]} 39. Qd6+ {[%clk 0:14:36]}  Ke8 {[%clk 0:08:34]}
40. Ne5 {[%clk 0:14:53]} 1-0

[Event "2026 European Womens Championship"]
[Site "Batumi, GE"]
[Date "2026.06.01"]
[Round "7"]
[White "Maltsevskaya, Aleksandra"]
[Black "Odisharia, Teona"]
[Result "1-0"]
[Board "86"]
[TimeControl "5400+30"]
[WhiteFideId "24174041"]
[BlackFideId "13602322"]
[WhiteElo "2390"]
[BlackElo "2167"]
[WhiteTitle "IM"]
[BlackTitle "WFM"]
[WhiteClock "0:16:17"]
[BlackClock "0:02:59"]
[Variant "Standard"]

1. e4 {[%clk 1:30:55]}  c5 {[%clk 1:30:50]} 2. Nc3 {[%clk 1:30:57]}  d6 {[%clk 1:30:45]} 3. Bb5+ {[%clk 1:30:54]}  Bd7 {[%clk 1:30:30]}
4. Bxd7+ {[%clk 1:31:15]}  Qxd7 {[%clk 1:30:55]} 5. d4 {[%clk 1:31:37]}  cxd4 {[%clk 1:30:57]} 6. Qxd4 {[%clk 1:32:00]}  Nc6 {[%clk 1:31:25]}
7. Qd3 {[%clk 1:32:22]}  Nf6 {[%clk 1:29:08]} 8. Nf3 {[%clk 1:32:38]}  g6 {[%clk 1:29:19]} 9. Bg5 {[%clk 1:33:01]}  Bg7 {[%clk 1:29:39]}
10. O-O {[%clk 1:33:23]}  h6 {[%clk 1:28:38]} 11. Bd2 {[%clk 1:31:41]}  O-O {[%clk 1:28:38]} 12. Nd5 {[%clk 1:32:03]}  Kh7 {[%clk 1:15:43]}
13. Rfe1 {[%clk 1:30:14]}  Ng4 {[%clk 1:14:19]} 14. Rad1 {[%clk 1:16:26]}  Rac8 {[%clk 1:07:45]} 15. Bc3 {[%clk 0:51:31]}  Rfd8 {[%clk 0:40:40]}
16. h3 {[%clk 0:41:50]}  Nge5 {[%clk 0:28:33]} 17. Nxe5 {[%clk 0:41:31]}  Nxe5 {[%clk 0:27:59]} 18. Bxe5 {[%clk 0:39:18]}  Bxe5 {[%clk 0:28:20]}
19. c3 {[%clk 0:39:44]}  e6 {[%clk 0:24:28]} 20. Ne3 {[%clk 0:40:03]}  Qa4 {[%clk 0:23:51]} 21. a3 {[%clk 0:38:26]}  f5 {[%clk 0:21:27]}
22. exf5 {[%clk 0:38:33]}  gxf5 {[%clk 0:21:30]} 23. Ng4 {[%clk 0:29:01]}  Qb3 {[%clk 0:17:22]} 24. Rd2 {[%clk 0:24:25]}  Bg7 {[%clk 0:11:54]}
25. Nh2 {[%clk 0:23:27]}  Rc5 {[%clk 0:10:58]} 26. Rde2 {[%clk 0:11:20]}  Rd5 {[%clk 0:09:05]} 27. Qf3 {[%clk 0:11:42]}  Re5 {[%clk 0:09:20]}
28. Qh5 {[%clk 0:09:29]}  Rf8 {[%clk 0:08:03]} 29. Rxe5 {[%clk 0:02:52]}  dxe5 {[%clk 0:07:03]} 30. Rd1 {[%clk 0:03:03]}  e4 {[%clk 0:04:05]}
31. Qe2 {[%clk 0:03:27]}  Qb6 {[%clk 0:04:16]} 32. Nf1 {[%clk 0:03:29]}  Rd8 {[%clk 0:04:00]} 33. Rd2 {[%clk 0:01:06]}  Bf6 {[%clk 0:02:34]}
34. g3 {[%clk 0:00:46]}  Bg5 {[%clk 0:01:54]} 35. Rxd8 {[%clk 0:01:10]}  Qxd8 {[%clk 0:01:53]} 36. h4 {[%clk 0:01:19]}  Bf6 {[%clk 0:01:48]}
37. Qc4 {[%clk 0:01:39]}  Qd7 {[%clk 0:01:41]} 38. Ne3 {[%clk 0:01:55]}  Kg6 {[%clk 0:01:30]} 39. Kg2 {[%clk 0:01:26]}  Be7 {[%clk 0:01:03]}
40. g4 {[%clk 0:00:35]}  Kf6 {[%clk 0:00:43]} 41. gxf5 {[%clk 0:00:39]}  exf5 {[%clk 0:26:29]} 42. Qg8 {[%clk 0:25:27]}  Bc5 {[%clk 0:15:10]}
43. Nd5+ {[%clk 0:25:03]}  Ke5 {[%clk 0:14:56]} 44. c4 {[%clk 0:25:27]}  Kd4 {[%clk 0:11:32]} 45. b3 {[%clk 0:22:08]}  Bxa3 {[%clk 0:09:10]}
46. Qg3 {[%clk 0:17:07]}  Bb2 {[%clk 0:06:06]} 47. Qe3+ {[%clk 0:17:02]}  Ke5 {[%clk 0:06:30]} 48. Qxh6 {[%clk 0:17:11]}  Qf7 {[%clk 0:02:50]}
49. Qh8+ {[%clk 0:17:19]}  Kd6 {[%clk 0:02:58]} 50. Qxb2 {[%clk 0:17:41]}  Qg6+ {[%clk 0:03:08]} 51. Kh2 {[%clk 0:17:05]}  Qg4 {[%clk 0:03:05]}
52. Qa3+ {[%clk 0:17:21]}  Ke5 {[%clk 0:03:00]} 53. Qa1+ {[%clk 0:17:12]}  Kd6 {[%clk 0:02:59]} 54. Qf6+ {[%clk 0:16:17]} 1-0

[Event "2026 European Womens Championship"]
[Site "Batumi, GE"]
[Date "2026.06.01"]
[Round "7"]
[White "Dwilewicz, Katarzyna"]
[Black "Mammadova, Gulnar"]
[Result "0-1"]
[Board "88"]
[TimeControl "5400+30"]
[WhiteFideId "1148486"]
[BlackFideId "13403508"]
[WhiteElo "2131"]
[BlackElo "2325"]
[WhiteTitle "WIM"]
[BlackTitle "IM"]
[WhiteClock "0:06:17"]
[BlackClock "0:22:19"]
[Variant "Standard"]

1. e4 {[%clk 1:30:57]}  c5 {[%clk 1:30:51]} 2. Nf3 {[%clk 1:31:06]}  e6 {[%clk 1:31:01]} 3. d4 {[%clk 1:31:23]}  cxd4 {[%clk 1:31:24]}
4. Nxd4 {[%clk 1:31:47]}  Nc6 {[%clk 1:31:47]} 5. Nc3 {[%clk 1:31:51]}  Nf6 {[%clk 1:32:06]} 6. Ndb5 {[%clk 1:31:06]}  Bc5 {[%clk 1:32:10]}
7. Bf4 {[%clk 1:28:50]}  O-O {[%clk 1:32:01]} 8. Bc7 {[%clk 1:28:33]}  Qe7 {[%clk 1:32:25]} 9. Bd6 {[%clk 1:28:50]}  Bxd6 {[%clk 1:32:50]}
10. Qxd6 {[%clk 1:29:15]}  Qd8 {[%clk 1:33:00]} 11. O-O-O {[%clk 1:24:14]}  a6 {[%clk 1:27:53]} 12. Nd4 {[%clk 1:23:04]}  Qb6 {[%clk 1:24:26]}
13. Nxc6 {[%clk 1:13:15]}  bxc6 {[%clk 1:21:39]} 14. f3 {[%clk 1:10:29]}  Ne8 {[%clk 1:20:54]} 15. Qd2 {[%clk 1:05:50]}  d5 {[%clk 1:19:54]}
16. h4 {[%clk 1:05:04]}  Rb8 {[%clk 1:14:33]} 17. b3 {[%clk 1:03:20]}  f5 {[%clk 1:05:49]} 18. exf5 {[%clk 0:56:31]}  exf5 {[%clk 1:06:11]}
19. h5 {[%clk 0:56:39]}  h6 {[%clk 1:06:30]} 20. Rh4 {[%clk 0:52:56]}  Nf6 {[%clk 1:05:30]} 21. Kb2 {[%clk 0:52:40]}  Qd8 {[%clk 0:55:37]}
22. g3 {[%clk 0:41:18]}  Qe8 {[%clk 0:48:56]} 23. Re1 {[%clk 0:37:34]}  Qf7 {[%clk 0:48:49]} 24. Ra4 {[%clk 0:35:13]}  Nxh5 {[%clk 0:41:10]}
25. Bxa6 {[%clk 0:33:47]}  Bxa6 {[%clk 0:35:31]} 26. Rxa6 {[%clk 0:34:11]}  Qb7 {[%clk 0:34:34]} 27. Ra4 {[%clk 0:32:21]}  Nxg3 {[%clk 0:24:29]}
28. Rg1 {[%clk 0:15:12]}  Qc7 {[%clk 0:23:22]} 29. Qf4 {[%clk 0:09:36]}  Qxf4 {[%clk 0:21:19]} 30. Rxf4 {[%clk 0:10:04]}  Nh5 {[%clk 0:20:59]}
31. Rh4 {[%clk 0:10:31]}  Nf6 {[%clk 0:21:20]} 32. Rxh6 {[%clk 0:10:55]}  Rbe8 {[%clk 0:20:55]} 33. Rhg6 {[%clk 0:10:13]}  Rf7 {[%clk 0:19:42]}
34. a4 {[%clk 0:08:42]}  Re3 {[%clk 0:14:00]} 35. a5 {[%clk 0:07:26]}  Kh7 {[%clk 0:10:26]} 36. a6 {[%clk 0:02:56]}  d4 {[%clk 0:07:34]}
37. Na4 {[%clk 0:03:01]}  Re5 {[%clk 0:07:37]} 38. Nb6 {[%clk 0:01:37]}  Ra5 {[%clk 0:04:49]} 39. Nc4 {[%clk 0:00:49]}  Rxa6 {[%clk 0:07:03]}
40. R6g5 {[%clk 0:00:43]}  Rfa7 {[%clk 0:04:36]} 41. Kc1 {[%clk 0:28:20]}  d3 {[%clk 0:31:30]} 42. Kd2 {[%clk 0:16:59]}  dxc2 {[%clk 0:28:19]}
43. Rxf5 {[%clk 0:13:49]}  Ra2 {[%clk 0:27:11]} 44. Rfg5 {[%clk 0:09:16]}  Rd7+ {[%clk 0:26:03]} 45. Kc1 {[%clk 0:09:08]}  Nd5 {[%clk 0:23:06]}
46. Ne5 {[%clk 0:08:39]}  Nf4 {[%clk 0:22:23]} 47. Rh5+ {[%clk 0:06:26]}  Nxh5 {[%clk 0:21:53]} 48. Nxd7 {[%clk 0:06:17]}  Ra1+ {[%clk 0:22:19]} 0-1

[Event "2026 European Womens Championship"]
[Site "Batumi, GE"]
[Date "2026.06.01"]
[Round "7"]
[White "Vidic, Teja"]
[Black "Szczotka, Klara"]
[Result "1-0"]
[Board "89"]
[TimeControl "5400+30"]
[WhiteFideId "14605511"]
[BlackFideId "21858845"]
[WhiteElo "2123"]
[BlackElo "2241"]
[WhiteTitle "WIM"]
[BlackTitle "WFM"]
[WhiteClock "0:20:46"]
[BlackClock "0:02:51"]
[Variant "Standard"]

1. e4 {[%clk 1:30:58]}  c6 {[%clk 1:30:47]} 2. d4 {[%clk 1:31:19]}  d5 {[%clk 1:31:12]} 3. Nc3 {[%clk 1:31:44]}  dxe4 {[%clk 1:31:12]}
4. Nxe4 {[%clk 1:32:08]}  Bf5 {[%clk 1:31:31]} 5. Ng3 {[%clk 1:32:31]}  Bg6 {[%clk 1:31:56]} 6. h4 {[%clk 1:32:50]}  h6 {[%clk 1:32:21]}
7. Nf3 {[%clk 1:33:11]}  Nd7 {[%clk 1:32:46]} 8. h5 {[%clk 1:33:31]}  Bh7 {[%clk 1:33:12]} 9. Bd3 {[%clk 1:33:58]}  Bxd3 {[%clk 1:33:32]}
10. Qxd3 {[%clk 1:34:22]}  e6 {[%clk 1:33:54]} 11. Bd2 {[%clk 1:34:39]}  Ngf6 {[%clk 1:34:15]} 12. O-O-O {[%clk 1:34:52]}  Be7 {[%clk 1:34:33]}
13. Ne4 {[%clk 1:34:33]}  Nxe4 {[%clk 1:34:53]} 14. Qxe4 {[%clk 1:34:57]}  Nf6 {[%clk 1:35:16]} 15. Qe2 {[%clk 1:34:24]}  Qd5 {[%clk 1:35:37]}
16. Kb1 {[%clk 1:30:28]}  b5 {[%clk 1:33:20]} 17. Ne5 {[%clk 1:23:48]}  a5 {[%clk 1:29:43]} 18. f3 {[%clk 1:19:08]}  a4 {[%clk 1:27:16]}
19. a3 {[%clk 1:16:10]}  O-O {[%clk 1:12:35]} 20. Qe1 {[%clk 1:02:19]}  Rfc8 {[%clk 1:00:40]} 21. g4 {[%clk 0:53:59]}  Nh7 {[%clk 0:53:17]}
22. f4 {[%clk 0:47:40]}  c5 {[%clk 0:41:09]} 23. g5 {[%clk 0:47:26]}  cxd4 {[%clk 0:37:32]} 24. gxh6 {[%clk 0:45:57]}  d3 {[%clk 0:20:39]}
25. Nxd3 {[%clk 0:41:20]}  Bf6 {[%clk 0:12:02]} 26. Ne5 {[%clk 0:39:59]}  Bxe5 {[%clk 0:06:41]} 27. fxe5 {[%clk 0:40:18]}  Qc4 {[%clk 0:06:43]}
28. Rc1 {[%clk 0:35:56]}  gxh6 {[%clk 0:04:38]} 29. Bxh6 {[%clk 0:34:07]}  Kh8 {[%clk 0:04:37]} 30. Rg1 {[%clk 0:33:37]}  Rg8 {[%clk 0:04:55]}
31. Qf2 {[%clk 0:33:56]}  Qc7 {[%clk 0:04:50]} 32. Rcf1 {[%clk 0:26:24]}  Rac8 {[%clk 0:03:13]} 33. Rxg8+ {[%clk 0:24:45]}  Rxg8 {[%clk 0:03:37]}
34. Qxf7 {[%clk 0:25:06]}  Qxf7 {[%clk 0:01:44]} 35. Rxf7 {[%clk 0:25:30]}  Rg1+ {[%clk 0:02:11]} 36. Ka2 {[%clk 0:25:55]}  Rh1 {[%clk 0:02:14]}
37. Re7 {[%clk 0:23:15]}  Kg8 {[%clk 0:02:28]} 38. Rxe6 {[%clk 0:20:34]}  Rxh5 {[%clk 0:02:51]} 39. Rg6+ {[%clk 0:20:46]} 1-0

[Event "2026 European Womens Championship"]
[Site "Batumi, GE"]
[Date "2026.06.01"]
[Round "7"]
[White "Ismayil, Malak"]
[Black "Peglau, Charis"]
[Result "1-0"]
[Board "90"]
[TimeControl "5400+30"]
[WhiteFideId "13412604"]
[BlackFideId "16219996"]
[WhiteElo "2122"]
[BlackElo "2238"]
[WhiteTitle "WIM"]
[BlackTitle "WFM"]
[WhiteClock "0:02:02"]
[BlackClock "0:03:49"]
[Variant "Standard"]

1. Nf3 {[%clk 1:30:50]}  Nf6 {[%clk 1:30:50]} 2. b3 {[%clk 1:31:17]}  b6 {[%clk 1:31:14]} 3. Bb2 {[%clk 1:30:02]}  Bb7 {[%clk 1:31:38]}
4. e3 {[%clk 1:30:10]}  g6 {[%clk 1:31:00]} 5. d4 {[%clk 1:28:25]}  Bg7 {[%clk 1:31:07]} 6. Bd3 {[%clk 1:28:24]}  c5 {[%clk 1:30:08]}
7. Nbd2 {[%clk 1:28:13]}  O-O {[%clk 1:29:51]} 8. c4 {[%clk 1:27:20]}  cxd4 {[%clk 1:29:35]} 9. exd4 {[%clk 1:26:47]}  d5 {[%clk 1:29:56]}
10. Qe2 {[%clk 1:24:09]}  Nc6 {[%clk 1:28:32]} 11. O-O {[%clk 1:16:32]}  e6 {[%clk 1:20:43]} 12. Rac1 {[%clk 1:09:25]}  Rc8 {[%clk 1:18:07]}
13. a3 {[%clk 1:06:34]}  Qe7 {[%clk 1:03:59]} 14. c5 {[%clk 0:49:18]}  bxc5 {[%clk 0:46:50]} 15. dxc5 {[%clk 0:45:45]}  a5 {[%clk 0:46:02]}
16. Bb5 {[%clk 0:37:09]}  Nd7 {[%clk 0:40:48]} 17. Bxg7 {[%clk 0:37:26]}  Kxg7 {[%clk 0:41:16]} 18. Bxc6 {[%clk 0:35:33]}  Bxc6 {[%clk 0:37:59]}
19. b4 {[%clk 0:31:23]}  axb4 {[%clk 0:38:09]} 20. axb4 {[%clk 0:31:50]}  Ba8 {[%clk 0:37:09]} 21. Nd4 {[%clk 0:23:15]}  e5 {[%clk 0:35:13]}
22. f4 {[%clk 0:20:52]}  Rb8 {[%clk 0:20:48]} 23. b5 {[%clk 0:12:23]}  Nxc5 {[%clk 0:20:08]} 24. Qxe5+ {[%clk 0:10:45]}  Qxe5 {[%clk 0:20:28]}
25. fxe5 {[%clk 0:11:13]}  Rfc8 {[%clk 0:17:04]} 26. N2f3 {[%clk 0:10:10]}  Ne4 {[%clk 0:13:37]} 27. Ra1 {[%clk 0:09:56]}  h6 {[%clk 0:09:18]}
28. Ra7 {[%clk 0:02:30]}  Rb7 {[%clk 0:09:34]} 29. Ra5 {[%clk 0:02:19]}  Rb6 {[%clk 0:08:45]} 30. e6 {[%clk 0:00:50]}  f6 {[%clk 0:07:17]}
31. h3 {[%clk 0:00:42]}  Nd6 {[%clk 0:07:02]} 32. Ra6 {[%clk 0:00:38]}  Rxa6 {[%clk 0:05:20]} 33. bxa6 {[%clk 0:01:07]}  Nc4 {[%clk 0:04:43]}
34. Rb1 {[%clk 0:01:20]}  Kf8 {[%clk 0:03:00]} 35. Nh4 {[%clk 0:00:41]}  Ne5 {[%clk 0:02:38]} 36. a7 {[%clk 0:00:50]}  Ke8 {[%clk 0:02:07]}
37. Rb8 {[%clk 0:01:12]}  Rd8 {[%clk 0:02:32]} 38. Nb5 {[%clk 0:00:49]}  Bc6 {[%clk 0:02:01]} 39. Nc7+ {[%clk 0:00:58]}  Ke7 {[%clk 0:02:26]}
40. Rxd8 {[%clk 0:00:39]}  Kxd8 {[%clk 0:02:55]} 41. a8=Q+ {[%clk 0:01:00]}  Bxa8 {[%clk 0:03:18]} 42. Nxa8 {[%clk 0:01:27]}  Ke7 {[%clk 0:27:00]}
43. Nc7 {[%clk 0:31:15]}  Kd6 {[%clk 0:26:48]} 44. e7 {[%clk 0:31:01]}  Kxe7 {[%clk 0:27:13]} 45. Nxd5+ {[%clk 0:31:28]}  Ke6 {[%clk 0:26:24]}
46. Nf4+ {[%clk 0:27:37]}  Kf7 {[%clk 0:26:53]} 47. Nf3 {[%clk 0:27:56]}  Nc4 {[%clk 0:26:39]} 48. Kf2 {[%clk 0:27:30]}  f5 {[%clk 0:23:46]}
49. Nd3 {[%clk 0:23:56]}  Kf6 {[%clk 0:23:21]} 50. Nb4 {[%clk 0:21:18]}  g5 {[%clk 0:22:53]} 51. Nd5+ {[%clk 0:21:41]}  Ke6 {[%clk 0:22:56]}
52. Ne3 {[%clk 0:21:08]}  Nd6 {[%clk 0:23:10]} 53. Ke2 {[%clk 0:17:00]}  Kf6 {[%clk 0:20:48]} 54. Kd3 {[%clk 0:15:31]}  Ne4 {[%clk 0:18:26]}
55. Nd2 {[%clk 0:14:14]}  Nc5+ {[%clk 0:16:24]} 56. Kc4 {[%clk 0:14:16]}  Ne6 {[%clk 0:16:37]} 57. Nf3 {[%clk 0:14:39]}  h5 {[%clk 0:13:45]}
58. Nd5+ {[%clk 0:12:58]}  Kg6 {[%clk 0:06:47]} 59. Nd4 {[%clk 0:12:33]}  Ng7 {[%clk 0:06:55]} 60. Kc5 {[%clk 0:09:57]}  h4 {[%clk 0:06:02]}
61. Kd6 {[%clk 0:09:38]}  Nh5 {[%clk 0:02:02]} 62. Ke5 {[%clk 0:07:22]}  f4 {[%clk 0:01:20]} 63. Nf3 {[%clk 0:06:38]}  Ng3 {[%clk 0:01:31]}
64. Nxf4+ {[%clk 0:03:10]}  gxf4 {[%clk 0:01:56]} 65. Nxh4+ {[%clk 0:03:37]}  Kh5 {[%clk 0:02:09]} 66. Nf3 {[%clk 0:03:44]}  Ne2 {[%clk 0:02:27]}
67. Kf5 {[%clk 0:04:11]}  Kh6 {[%clk 0:02:20]} 68. Kg4 {[%clk 0:04:25]}  Kg6 {[%clk 0:02:20]} 69. Ne5+ {[%clk 0:04:43]}  Kf6 {[%clk 0:02:42]}
70. Nd3 {[%clk 0:05:10]}  Nd4 {[%clk 0:02:35]} 71. Nxf4 {[%clk 0:04:53]}  Nf5 {[%clk 0:02:42]} 72. Nd5+ {[%clk 0:04:13]}  Kg6 {[%clk 0:02:52]}
73. Kf4 {[%clk 0:03:15]}  Nd4 {[%clk 0:02:44]} 74. g4 {[%clk 0:03:09]}  Ne6+ {[%clk 0:02:57]} 75. Ke5 {[%clk 0:03:10]}  Ng5 {[%clk 0:03:06]}
76. Nf4+ {[%clk 0:03:36]}  Kh6 {[%clk 0:03:32]} 77. Kf5 {[%clk 0:03:51]}  Nf3 {[%clk 0:03:54]} 78. Ne6 {[%clk 0:04:09]}  Nh4+ {[%clk 0:03:59]}
79. Kf6 {[%clk 0:04:29]}  Ng6 {[%clk 0:02:31]} 80. Nd4 {[%clk 0:04:13]}  Nf4 {[%clk 0:02:34]} 81. Nf5 {[%clk 0:03:52]}  Kh7 {[%clk 0:03:02]}
82. g5 {[%clk 0:02:55]}  Kg8 {[%clk 0:03:11]} 83. Ne7+ {[%clk 0:02:35]}  Kh7 {[%clk 0:03:28]} 84. h4 {[%clk 0:01:27]}  Nh5+ {[%clk 0:03:52]}
85. Kf7 {[%clk 0:01:53]}  Ng7 {[%clk 0:03:55]} 86. Nd5 {[%clk 0:01:48]}  Nf5 {[%clk 0:03:37]} 87. h5 {[%clk 0:01:50]}  Ng7 {[%clk 0:02:25]}
88. Nf6 {[%clk 0:00:40]}  Kh8 {[%clk 0:02:54]} 89. Kg6 {[%clk 0:00:34]}  Ne6 {[%clk 0:03:14]} 90. Kh6 {[%clk 0:00:34]}  Nf4 {[%clk 0:03:00]}
91. Ng4 {[%clk 0:00:34]}  Kg8 {[%clk 0:02:53]} 92. g6 {[%clk 0:00:59]}  Ne6 {[%clk 0:03:18]} 93. Nf6+ {[%clk 0:01:13]}  Kh8 {[%clk 0:03:38]}
94. Ne8 {[%clk 0:01:23]}  Kg8 {[%clk 0:03:31]} 95. g7 {[%clk 0:01:41]}  Kf7 {[%clk 0:03:49]} 96. Kh7 {[%clk 0:02:02]} 1-0